bitfinex/quotes_SOLUSD_20250226
["timestamp","ask_amount","ask_price","bid_price","bid_amount"]
[1740542758144,81.1,143.45,143.4,7.0365]
[1740542758940,0.12549,143.44,143.4,0.063]
[1740542759139,0.12549,143.42,143.4,0.063]
[1740542759447,81.1,143.41,143.4,0.063]
[1740542762946,13.3751,143.42,143.4,0.063]
[1740542764532,25.62264886,143.41,143.4,0.063]
[1740542765748,25.74813886,143.41,143.4,0.063]
[1740542766046,7.09849,143.41,143.4,0.063]
[1740542767429,25.74813886,143.41,143.4,0.063]
[1740542769347,13.3751,143.42,143.4,0.063]
[1740542774364,25.74813886,143.41,143.4,0.063]
[1740542775761,6.973,143.41,143.4,0.063]
[1740542776137,13.3751,143.42,143.4,0.063]
[1740542776651,263.75,143.46,143.4,0.063]
[1740542776828,270.7206,143.46,143.4,0.063]
[1740542777025,0.12549,143.43,143.4,0.063]
[1740542777247,0.12549,143.41,143.38,0.063]
[1740542777430,18.77513886,143.39,143.38,0.063]
[1740542778136,25.74903886,143.39,143.38,0.063]
[1740542778539,25.74903886,143.39,143.29,1.6198]
[1740542778740,160.24903886,143.39,143.29,8.5986]
[1740542779142,160.24903886,143.39,143.38,0.063]
[1740542780129,141.4739,143.39,143.38,0.063]
[1740542780326,134.5,143.39,143.38,0.063]
[1740542780952,153.14964886,143.39,143.38,0.063]
[1740542783171,160.12354886,143.39,143.38,0.063]
[1740542783654,160.24903886,143.39,143.38,0.063]
[1740542784029,160.37452886,143.39,143.38,0.063]
[1740542784226,25.87452886,143.39,143.38,0.063]
[1740542784640,27.87452886,143.39,143.38,0.063]
[1740542787551,20.0,143.36,143.28,6.9792]
[1740542787761,18.64964886,143.34,143.28,6.9792]
[1740542788356,87.48,143.35,143.28,6.9792]
[1740542788771,81.1,143.35,143.29,0.12549]
[1740542788949,81.1,143.35,143.3,1.5553]
[1740542789978,81.1,143.35,143.31,6.9778]
[1740542790149,81.1,143.37,143.31,6.9778]
[1740542793281,81.1,143.37,143.32,0.12549]
[1740542793746,81.1,143.37,143.33,6.9769]
[1740542794883,81.1,143.37,143.31,24.4225]
[1740542796049,81.1,143.37,143.32,0.12549]
[1740542796778,81.1,143.39,143.32,0.12549]
[1740542797076,81.1,143.39,143.33,24.4191]
[1740542797783,6.38,143.4,143.34,0.12549]
[1740542798086,0.0001,143.42,143.41,20.0]
[1740542798383,0.0001,143.42,143.41,104.5312001]
[1740542798553,0.03,143.46,143.42,18.90062886]
[1740542798753,0.03,143.46,143.42,102.80053896]
[1740542798991,0.03,143.46,143.43,6.972]
[1740542799851,0.03,143.46,143.44,0.12549]
[1740542800980,0.03,143.46,143.43,0.12549]
[1740542801181,0.03,143.46,143.43,7.09749]
[1740542801680,0.03,143.46,143.45,20.12549]
[1740542802956,0.03,143.46,143.45,27.09649]
[1740542803159,0.03,143.48,143.46,6.27369]
[1740542805080,0.03,143.48,143.47,6.97]
[1740542807796,0.03,143.48,143.47,110.37403896]
[1740542808300,0.03,143.49,143.48,0.12549]
[1740542808497,0.03,143.49,143.48,83.0254001]
[1740542809303,0.0001,143.49,143.48,108.77013896]
[1740542809604,0.03,143.55,143.52,0.25098]
[1740542809786,0.03,143.55,143.54,20.0]
[1740542811684,0.03,143.55,143.52,89.2799101]
[1740542811986,0.03,143.55,143.5,3.5206303]
[1740542812406,0.03,143.55,143.51,0.12549]
[1740542812707,0.03,143.55,143.51,83.0254001]
[1740542812880,0.03,143.55,143.54,20.0]
[1740542813089,0.03,143.57,143.54,20.0]
[1740542813090,0.03,143.57,143.55,0.25098]
[1740542813290,0.03,143.57,143.55,18.90062886]
[1740542813679,0.03,143.57,143.56,7.09119]
[1740542815400,0.03,143.57,143.56,10.56134556]
[1740542815606,0.0001,143.57,143.56,112.23639452]
[1740542818193,0.03,143.61,143.59,20.0]
[1740542819396,0.03,143.61,143.6,7.08919]
[1740542820897,0.03,143.61,143.6,6.9637]
[1740542821080,0.03,143.61,143.58,6.9647]
[1740542822382,1.5802,143.61,143.56,6.9653]
[1740542822587,20.22984886,143.61,143.53,6.9671]
[1740542822788,18.64964886,143.59,143.51,6.9681]
[1740542822998,94.3964,143.6,143.51,6.9681]
[1740542823283,94.3964,143.6,143.52,0.12549]
[1740542823284,87.4327,143.6,143.52,0.12549]
[1740542824384,87.4327,143.6,143.54,0.12549]
[1740542824883,0.03,143.61,143.57,20.12549]
[1740542825204,0.03,143.61,143.6,20.0]
[1740542825402,0.03,143.61,143.6,102.8999101]
[1740542826392,0.03,143.61,143.6,109.8636101]
[1740542828508,0.03,143.61,143.6,109.9891001]
[1740542829018,0.03,143.63,143.62,18.90062886]
[1740542829387,0.03,143.63,143.62,101.80053896]
[1740542829683,0.0001,143.64,143.62,102.80053896]
[1740542829888,0.0001,143.64,143.63,0.12549]
[1740542830312,0.0001,143.64,143.63,1.12549]
[1740542830610,0.0001,143.64,143.63,7.08779]
[1740542831006,0.0001,143.64,143.63,90.9877001]
[1740542831314,0.0001,143.64,143.63,89.9877001]
[1740542831510,0.0001,143.64,143.63,90.9877001]
[1740542831904,0.0001,143.64,143.63,109.76283896]
[1740542832110,0.0001,143.64,143.63,111.80660583]
[1740542832690,0.03,143.72,143.66,20.0]
[1740542832898,0.03,143.72,143.68,0.12549]
[1740542833092,0.03,143.72,143.68,83.0254001]
[1740542833308,0.03,143.72,143.71,20.0]
[1740542833609,0.03,143.72,143.71,103.0254001]
[1740542834010,0.03,143.75,143.72,18.90062886]
[1740542834214,0.03,143.75,143.74,20.12549]
[1740542836120,0.03,143.75,143.74,27.08249]
[1740542836615,0.03,143.75,143.74,45.85762886]
[1740542836920,0.03,143.75,143.74,128.75753896]
[1740542837215,0.03,143.8,143.77,0.25098]
[1740542837416,0.03,143.8,143.79,20.12549]
[1740542838096,0.03,143.8,143.79,27.07999]
[1740542838492,0.03,143.8,143.79,20.0]
[1740542838793,0.03,143.8,143.78,0.12549]
[1740542840597,0.03,143.8,143.78,7.08049]
[1740542841650,0.03,143.8,143.78,89.9804001]
[1740542844228,0.03,143.8,143.78,82.8999101]
[1740542844908,0.03,143.8,143.78,89.8549101]
[1740542845105,0.03,143.8,143.78,82.8999101]
[1740542845323,0.03,143.8,143.79,0.12549]
[1740542846023,0.03,143.8,143.79,83.0254001]
[1740542846328,0.03,143.8,143.79,89.9799001]
[1740542846917,0.03,143.8,143.79,108.75503896]
[1740542847110,0.03,143.8,143.79,109.75503896]
[1740542847610,0.0001,143.8,143.79,151.57503896]
[1740542847804,0.0001,143.8,143.79,152.57503896]
[1740542848613,0.03,143.85,143.83,20.12549]
[1740542848923,0.03,143.85,143.83,83.0254001]
[1740542849731,6.9793,143.9,143.83,83.0254001]
[1740542850311,6.9793,143.9,143.83,89.9778001]
[1740542851129,10.70180622,144.32,143.83,89.9778001]
[1740542851130,0.03,143.95,143.94,18.90062886]
[1740542851438,0.03,143.95,143.94,83.0254001]
[1740542852211,0.03,143.95,143.94,89.9727001]
[1740542852629,0.03,143.95,143.94,108.74783896]
[1740542853202,0.03,144.0,143.93,6.38]
[1740542853426,25.20513886,144.0,143.92,82.8999101]
[1740542853837,6.43,144.0,143.93,0.12549]
[1740542854208,18.77513886,143.99,143.9,6.9488]
[1740542854531,6.2578,143.97,143.89,89.8495101]
[1740542854832,6.2578,143.97,143.9,0.12549]
[1740542855123,6.2578,143.97,143.88,16.85691538]
[1740542855712,1.5695,143.96,143.89,0.12549]
[1740542856429,1.5695,143.96,143.9,6.9492]
[1740542856634,1.5695,143.96,143.89,7.07509]
[1740542858142,1.5695,143.96,143.89,89.9750001]
[1740542858347,1.5695,143.96,143.89,107.3493001]
[1740542867041,1.5695,143.96,143.92,20.0]
[1740542867352,1.5695,143.96,143.93,6.9478]
[1740542868124,1.5695,143.96,143.92,20.0]
[1740542868726,1.6917,144.0,143.93,0.12549]
[1740542868944,1.6917,144.0,143.95,20.0]
[1740542869840,1.6917,144.0,143.96,20.12549]
[1740542870255,1.6917,144.0,143.97,6.9458]
[1740542872252,1.6917,144.0,143.96,6.9463]
[1740542874551,1.6917,144.0,143.97,0.12549]
[1740542875728,0.03,144.0,143.97,0.12549]
[1740542876351,0.03,144.0,143.98,6.9454]
[1740542879857,0.03,144.0,143.99,0.12549]
[1740542880170,0.03,144.03,143.99,19.90062886]
[1740542880457,0.0001,144.03,144.02,20.0]
[1740542880757,0.0001,144.03,144.02,38.90062886]
[1740542881550,0.0001,144.03,144.02,45.90462886]
[1740542881932,0.0001,144.03,144.02,52.84802886]
[1740542882662,0.0001,144.03,144.02,45.84402886]
[1740542882834,0.0001,144.03,144.02,27.06889]
[1740542883337,6.36,144.08,144.02,37.87906852]
[1740542883946,13.23780719,144.03,144.02,10.70328275]
[1740542884549,6.22080719,144.03,144.02,10.70328275]
[1740542885464,85.33384675,144.07,144.02,9.20772484]
[1740542885668,85.33384675,144.07,144.02,16.21172484]
[1740542885848,85.33304675,144.09,144.03,0.12549]
[1740542886159,0.03,144.11,144.04,13.364]
[1740542887150,0.03,144.11,144.05,0.12549]
[1740542887357,0.03,144.11,144.06,7.004]
[1740542887558,0.03,144.11,144.08,7.004]
[1740542887744,0.03,144.11,144.09,0.12549]
[1740542887947,0.03,144.11,144.1,7.004]
[1740542888148,7.6168,144.1,144.05,37.87801487]
[1740542888971,7.6168,144.1,144.05,6.9419]
[1740542889265,6.0288,144.1,144.06,0.12549]
[1740542890062,6.0288,144.1,144.05,6.942]
[1740542891056,0.03,144.11,144.06,18.90062886]
[1740542891254,0.03,144.11,144.06,26.28062886]
[1740542891454,0.03,144.11,144.09,40.90062886]
[1740542891980,0.03,144.11,144.1,25.84022886]
[1740542892171,0.03,144.11,144.1,32.84422886]
[1740542892675,0.03,144.11,144.1,25.84022886]
[1740542893269,0.03,144.11,144.1,47.81022886]
[1740542893479,0.03,144.11,144.1,46.79434163]
[1740542893871,0.03,144.11,144.1,57.49648621]
[1740542895092,0.03,144.12,144.11,25.90462886]
[1740542895303,0.03,144.12,144.11,32.28462886]
[1740542895999,0.03,144.12,144.11,36.40083831]
[1740542896493,0.03,144.12,144.11,49.35095108]
[1740542896691,0.03,144.12,144.11,56.29005108]
[1740542896990,0.03,144.12,144.11,60.81453341]
[1740542897195,79.99094675,144.21,144.11,42.03939455]
[1740542897391,6.9352,144.2,144.11,42.03939455]
[1740542897765,6.9352,144.2,144.11,35.03539455]
[1740542898389,6.9352,144.2,144.11,22.08528178]
[1740542898579,6.9352,144.2,144.11,17.56079945]
[1740542899286,6.9352,144.2,144.11,13.44459]
[1740542900370,104.10348561,144.19,144.11,7.06459]
[1740542900569,104.10348561,144.19,144.11,7.12759]
[1740542901094,85.32834675,144.19,144.11,7.12759]
[1740542902391,85.32834675,144.19,144.12,7.004]
[1740542902691,85.32834675,144.19,144.11,0.18849]
[1740542902692,85.32834675,144.19,144.14,7.004]
[1740542905192,6.1047,144.2,144.15,7.004]
[1740542905193,0.03,144.2,144.15,7.004]
[1740542906494,0.03,144.2,144.16,7.004]
[1740542907076,0.03,144.2,144.15,6.9372]
[1740542907274,0.03,144.2,144.16,7.004]
[1740542908276,0.03,144.2,144.18,7.004]
[1740542909397,0.03,144.2,144.12,25.04858558]
[1740542909398,18.64964886,144.18,144.12,6.9386]
[1740542909692,20.0,144.15,144.11,0.063]
[1740542909878,18.64964886,144.13,144.11,0.063]
[1740542910273,25.58794886,144.13,144.11,0.063]
[1740542912603,78.39284675,144.12,144.11,0.063]
[1740542913783,104.10658561,144.12,144.11,0.063]
[1740542914105,25.71373886,144.12,144.11,0.063]
[1740542914404,25.71373886,144.12,143.96,50.907]
[1740542914405,38.77513886,144.08,143.98,7.004]
[1740542914585,6.36,144.07,143.98,82.8999101]
[1740542914785,6.36,144.07,143.99,0.12549]
[1740542915305,13.3014,144.07,144.0,6.9444]
[1740542915501,18.77513886,144.06,143.96,1.6787]
[1740542915705,18.77513886,144.06,143.97,6.9458]
[1740542915910,18.77513886,144.06,143.98,0.12549]
[1740542916796,6.942,144.05,143.98,7.07069]
[1740542917101,18.64964886,144.04,143.98,6.9452]
[1740542917309,18.64964886,144.04,143.96,84.5786101]
[1740542917505,18.64964886,144.04,143.96,89.9091101]
[1740542918114,153.14964886,144.04,143.96,7.0092]
[1740542918294,18.64964886,144.02,143.96,7.0092]
[1740542918611,99.74964886,144.02,143.96,7.0092]
[1740542918910,99.74964886,144.02,143.96,0.063]
[1740542919407,99.74964886,144.02,143.96,7.067]
[1740542920110,81.1,144.06,143.97,0.12549]
[1740542920294,215.6,144.07,143.99,0.12549]
[1740542920500,222.5411,144.07,143.99,0.12549]
[1740542921605,215.5441,144.07,144.01,7.004]
[1740542921808,208.603,144.07,144.01,7.004]
[1740542921985,81.1,144.07,144.01,7.004]
[1740542922921,153.21783886,144.1,144.02,0.12549]
[1740542922922,81.1,144.1,144.02,0.12549]
[1740542923095,81.1,144.1,144.04,0.12549]
[1740542923608,81.1,144.1,144.06,7.004]
[1740542927106,81.1,144.12,144.07,7.004]
[1740542928218,209.68,144.14,144.07,7.004]
[1740542928522,81.1,144.14,144.08,8.13425529]
[1740542928696,81.22575517,144.17,144.1,0.12549]
[1740542928892,81.1,144.17,144.1,0.12549]
[1740542930116,0.03,144.18,144.12,7.12949]
[1740542930297,0.03,144.18,144.14,7.12949]
[1740542930918,0.03,144.18,144.14,7.004]
[1740542931116,20.03,144.18,144.14,7.004]
[1740542931298,20.03,144.18,144.11,21.30786529]
[1740542931500,20.03,144.18,144.12,0.12549]
[1740542932115,0.03,144.18,144.13,6.9381]
[1740542932318,0.03,144.18,144.14,0.12549]
[1740542932821,0.03,144.18,144.14,7.12949]
[1740542933504,0.03,144.18,144.14,7.004]
[1740542934011,0.03,144.18,144.13,6.9381]
[1740542934325,0.03,144.18,144.14,0.12549]
[1740542935124,0.03,144.18,144.16,0.12549]
[1740542935305,0.03,144.18,144.16,7.12949]
[1740542936608,0.03,144.18,144.17,13.9402]
[1740542937123,0.03,144.18,144.17,14.06569]
[1740542937836,0.03,144.18,144.17,18.58896677]
[1740542939428,0.03,144.18,144.17,7.004]
[1740542939611,0.03,144.18,144.14,9.78755494]
[1740542939920,0.03,144.18,144.14,2.78355494]
[1740542940508,0.03,144.18,144.16,1.0]
[1740542940703,0.03,144.2,144.16,9.12949]
[1740542940921,0.03,144.2,144.19,0.12549]
[1740542941115,0.03,144.2,144.19,13.52949]
[1740542942322,0.03,144.26,144.19,32.30462886]
[1740542942942,0.03,144.26,144.22,0.12549]
[1740542944423,0.03,144.26,144.24,7.004]
[1740542944628,75.9339806,144.29,144.25,13.9364]
[1740542945335,82.4665806,144.33,144.26,0.12549]
[1740542946431,0.03,144.33,144.29,0.12549]
[1740542946732,0.03,144.33,144.28,7.004]
[1740542946932,42.8072249,144.52,144.42,0.12549]
[1740542947119,42.8072249,144.52,144.43,6.64]
[1740542947505,42.8072249,144.52,144.44,0.12549]
[1740542947719,20.90361245,144.51,144.44,18.90062886]
[1740542947918,20.90361245,144.51,144.43,6.64]
[1740542948114,20.90361245,144.51,144.39,13.644]
[1740542948327,75.9339806,144.5,144.42,0.12549]
[1740542948521,148.40661245,144.51,144.42,0.12549]
[1740542949353,97.82762541,144.53,144.42,0.12549]
[1740542949354,6.64,144.53,144.43,7.004]
[1740542949514,6.64,144.53,144.42,20.0]
[1740542949515,6.64,144.53,144.44,0.22622699]
[1740542949720,6.64,144.53,144.43,7.12949]
[1740542950021,214.50462478,144.55,144.43,7.60921752]
[1740542950233,18.77513886,144.54,144.43,7.60921752]
[1740542950532,0.03,144.48,144.45,7.004]
[1740542950735,0.03,144.48,144.46,10.88784523]
[1740542951424,0.03,144.48,144.46,17.89184523]
[1740542951840,75.9339806,144.53,144.46,17.89184523]
[1740542952025,75.9339806,144.52,144.47,0.117293]
[1740542952336,42.16155419,144.51,144.45,7.004]
[1740542952515,42.16155419,144.51,144.45,13.9266]
[1740542952715,35.16455419,144.51,144.45,13.9266]
[1740542952928,36.16455419,144.54,144.47,7.004]
[1740542953321,35.16455419,144.53,144.47,7.004]
[1740542953727,35.16455419,144.53,144.45,6.9226]
[1740542953934,35.16455419,144.53,144.48,7.004]
[1740542954554,35.16455419,144.55,144.48,7.004]
[1740542954719,35.16455419,144.55,144.47,6.9218]
[1740542955650,105.7039806,144.56,144.48,0.12549]
[1740542955651,1.8009806,144.56,144.48,0.12549]
[1740542955857,1.8009806,144.56,144.48,18.90062886]
[1740542956035,1.8009806,144.56,144.5,0.12549]
[1740542956234,1.8009806,144.56,144.5,18.90062886]
[1740542956626,1.8009806,144.56,144.5,0.12549]
[1740542957421,1.8009806,144.56,144.5,18.90062886]
[1740542957947,1.8009806,144.56,144.5,0.12549]
[1740542958269,1.8009806,144.56,144.49,6.62]
[1740542958462,32.18574886,144.59,144.5,6.9203]
[1740542958751,32.18574886,144.59,144.48,11.01333523]
[1740542958752,18.64964886,144.57,144.48,10.88784523]
[1740542958949,18.14964886,144.57,144.48,10.88784523]
[1740542959254,21.53869628,144.57,144.46,7.865]
[1740542959554,81.1,144.56,144.47,6.9217]
[1740542959740,81.13,144.56,144.47,6.9217]
[1740542960151,89.0475,144.56,144.46,14.869]
[1740542960358,89.0475,144.56,144.46,8.5402]
[1740542960359,90.0475,144.56,144.46,8.5402]
[1740542960550,20.0,144.52,144.42,13.3267]
[1740542960718,87.76,144.51,144.42,6.4026]
[1740542960923,87.76,144.51,144.42,13.3266]
[1740542962062,81.1,144.51,144.43,18.77513886]
[1740542962236,81.1,144.51,144.44,6.7]
[1740542962627,104.39717233,144.54,144.44,6.7]
[1740542962955,106.39717233,144.54,144.42,13.3266]
[1740542963136,1.0,144.53,144.42,13.3266]
[1740542963338,19.64964886,144.53,144.42,13.3266]
[1740542963530,20.64964886,144.53,144.42,13.3266]
[1740542964137,1.0,144.51,144.41,8.4301]
[1740542964753,20.0,144.49,144.41,8.4301]
[1740542965073,1.0,144.49,144.41,1.5054]
[1740542965233,20.0,144.45,144.35,6.9275]
[1740542965425,81.1,144.44,144.34,1.5945]
[1740542966142,6.9237,144.43,144.34,8.5225]
[1740542967954,6.9237,144.43,144.34,1.5945]
[1740542968129,10.68285927,144.43,144.34,1.5945]
[1740542968527,7.9237,144.43,144.34,1.5945]
[1740542968730,81.1,144.51,144.39,21.0]
[1740542969029,81.1,144.53,144.42,18.77513886]
[1740542969250,81.1,144.55,144.42,18.77513886]
[1740542969437,81.1,144.55,144.43,0.12549]
[1740542969639,81.1,144.55,144.45,0.12549]
[1740542969848,82.1,144.55,144.46,6.82]
[1740542970166,20.0,144.52,144.44,7.004]
[1740542970362,81.1,144.51,144.44,7.004]
[1740542970526,81.1,144.51,144.43,13.7635]
[1740542970731,81.1,144.55,144.44,0.12549]
[1740542971862,81.1,144.55,144.45,6.9228]
[1740542972040,81.1,144.55,144.46,0.12549]
[1740542972241,0.03,144.56,144.46,0.12549]
[1740542972635,1.41128867,144.49,144.46,0.12549]
[1740542973657,20.0,144.52,144.45,13.9268]
[1740542973836,20.0,144.52,144.45,7.004]
[1740542974350,20.0,144.52,144.45,13.9267]
[1740542974531,81.1,144.51,144.45,7.004]
[1740542975133,74.103,144.51,144.44,2.77771595]
[1740542975634,74.103,144.51,144.44,9.78171595]
[1740542975841,81.0232,144.51,144.44,16.70491595]
[1740542976042,81.0232,144.51,144.45,11.5182934]
[1740542976954,82.0232,144.51,144.45,11.5182934]
[1740542977864,75.0262,144.51,144.46,7.004]
[1740542978066,67.106,144.5,144.46,7.004]
[1740542978252,68.106,144.5,144.46,7.004]
[1740542978643,1.0,144.49,144.46,7.004]
[1740542978837,68.106,144.49,144.41,14.5944]
[1740542979142,75.0273,144.49,144.41,21.5984]
[1740542980838,69.03741887,144.49,144.41,22.5984]
[1740542981246,69.03741887,144.49,144.43,7.004]
[1740542981759,69.03741887,144.49,144.42,7.924]
[1740542982260,69.03741887,144.49,144.42,20.76529931]
[1740542982456,62.11611887,144.49,144.43,1.0]
[1740542982641,62.11611887,144.49,144.45,1.0]
[1740542982837,6.9205,144.5,144.42,20.76529931]
[1740542983163,69.03661887,144.5,144.43,1.0]
[1740542983358,69.03661887,144.5,144.44,1.0]
[1740542983548,69.03661887,144.5,144.46,1.73667759]
[1740542983969,2.77886509,144.49,144.46,1.73667759]
[1740542984663,2.77886509,144.49,144.42,6.924]
[1740542984841,64.89498396,144.49,144.41,14.5943]
[1740542985161,18.64964886,144.48,144.41,1.6575]
[1740542985343,19.64964886,144.48,144.41,8.6615]
[1740542985539,95.31611887,144.47,144.41,7.067]
[1740542985748,6.9223,144.46,144.41,7.067]
[1740542985942,55.11911887,144.45,144.41,7.067]
[1740542986258,39.56467705,144.45,144.42,7.004]
[1740542986558,39.56467705,144.45,144.42,29.85096806]
[1740542986959,32.56767705,144.45,144.42,29.85096806]
[1740542987151,6.9219,144.47,144.42,22.84696806]
[1740542987468,20.0,144.44,144.42,29.85096806]
[1740542987648,20.0,144.36,144.28,7.5892]
[1740542987849,26.96,144.35,144.28,7.5892]
[1740542988050,30.22348209,144.35,144.3,7.004]
[1740542988358,19.64964886,144.34,144.3,7.004]
[1740542988564,20.0,144.31,144.29,7.004]
[1740542989059,20.0,144.31,144.27,0.063]
[1740542989561,38.80498765,144.3,144.25,7.004]
[1740542989764,6.9304,144.29,144.23,1.6078]
[1740542989969,6.9304,144.29,144.2,83.8999101]
[1740542990145,6.9304,144.29,144.17,75.09081291]
[1740542990655,6.9304,144.29,144.21,8.00204624]
[1740542991374,6.9304,144.29,144.22,7.004]
[1740542991955,6.9304,144.29,144.22,82.09481291]
[1740542992279,26.9394,144.31,144.24,7.004]
[1740542992659,19.9794,144.31,144.24,82.09481291]
[1740542993246,19.9794,144.31,144.26,7.004]
[1740542993779,6.93,144.3,144.26,7.004]
[1740542994358,2.55877813,144.31,144.26,7.004]
[1740542994680,135.28,144.32,144.26,7.004]
[1740542994862,135.28,144.32,144.25,7.004]
[1740542995259,6.9295,144.31,144.24,75.09081291]
[1740542995679,39.49717705,144.31,144.24,75.09081291]
[1740542996379,5.03301665,144.3,144.24,75.09081291]
[1740542996972,11.96341665,144.3,144.24,75.09081291]
[1740542997580,32.56767705,144.29,144.22,0.063]
[1740542997849,49.12345589,144.29,144.22,0.063]
[1740542998357,20.0,144.26,144.22,0.063]
[1740542998691,6.9,144.26,144.22,0.063]
[1740542999043,6.9324,144.25,144.22,0.063]
[1740542999785,32.56767705,144.24,144.22,0.063]
[1740542999991,33.56767705,144.24,144.22,0.063]
[1740543000151,32.56767705,144.23,144.22,0.063]
[1740543000352,14.8,144.24,144.22,0.063]
[1740543001096,6.9333,144.23,144.22,0.063]
[1740543001660,27.58294886,144.23,144.22,0.0001]
[1740543001856,26.58294886,144.23,144.22,0.0001]
[1740543002179,20.63194886,144.23,144.22,0.0001]
[1740543002478,20.75743886,144.23,144.22,0.0001]
[1740543002970,15.86740577,144.23,144.22,0.0001]
[1740543003371,22.80070577,144.23,144.22,0.0001]
[1740543003568,20.0,144.2,144.1,6.9396]
[1740543003876,6.92,144.22,144.11,0.12549]
[1740543004061,20.0,144.19,144.11,75.21630291]
[1740543004568,20.0,144.19,144.11,82.15490291]
[1740543004751,26.9354,144.19,144.11,82.15490291]
[1740543005470,26.9354,144.19,144.12,7.004]
[1740543005855,20.0,144.19,144.12,7.004]
[1740543006168,26.9354,144.19,144.12,7.004]
[1740543006376,8.33161773,144.15,144.11,82.02991291]
[1740543006752,8.33161773,144.15,144.12,7.004]
[1740543006955,8.33161773,144.15,144.11,82.02991291]
[1740543007269,6.66501773,144.15,144.14,18.64964886]
[1740543007584,13.54882153,144.18,144.15,0.12549]
[1740543007772,8.92560111,144.18,144.16,7.004]
[1740543007975,0.03,144.23,144.17,0.12549]
[1740543008172,0.03,144.23,144.18,7.004]
[1740543008360,6.9634,144.23,144.18,7.004]
[1740543008772,0.03,144.23,144.18,7.004]
[1740543009758,0.03,144.23,144.17,75.09081291]
[1740543009759,13.039,144.21,144.19,7.004]
[1740543009955,6.078,144.21,144.19,7.004]
[1740543010182,81.1,144.22,144.14,75.09081291]
[1740543010385,81.1,144.21,144.14,75.09081291]
[1740543011088,6.9348,144.2,144.14,82.09481291]
[1740543011488,81.0838,144.21,144.14,82.09481291]
[1740543011782,81.0838,144.21,144.14,7.004]
[1740543012076,20.0,144.18,144.13,13.4068]
[1740543012769,20.0,144.18,144.13,6.4687]
[1740543013372,81.0838,144.21,144.14,0.12549]
[1740543013678,6.93,144.23,144.14,75.21630291]
[1740543013860,6.9634,144.23,144.14,75.21630291]
[1740543014063,20.0,144.21,144.15,7.004]
[1740543014381,0.03,144.23,144.17,7.004]
[1740543014578,26.9634,144.23,144.17,82.09481291]
[1740543014966,20.03,144.23,144.17,82.09481291]
[1740543015173,0.03,144.23,144.18,0.12549]
[1740543015362,209.6038,144.26,144.21,6.0069]
[1740543015363,78.024,144.26,144.21,6.0069]
[1740543015567,84.9541,144.3,144.22,0.12549]
[1740543015782,84.9541,144.3,144.22,75.21630291]
[1740543016161,20.0,144.27,144.23,7.004]
[1740543016362,84.9541,144.3,144.23,7.004]
[1740543016789,20.0,144.27,144.23,7.004]
[1740543017082,84.9544,144.29,144.24,7.004]
[1740543017261,78.024,144.29,144.24,7.004]
[1740543017661,71.073,144.29,144.24,7.004]
[1740543018074,6.93,144.3,144.24,7.004]
[1740543018381,6.93,144.3,144.29,7.004]
[1740543018594,20.0,144.29,144.28,8.16717651]
[1740543019084,6.9291,144.32,144.28,8.16717651]
[1740543019290,81.9016,144.33,144.28,8.16717651]
[1740543019580,78.0016,144.33,144.28,8.16717651]
[1740543019785,78.0016,144.33,144.29,7.004]
[1740543019968,7.27309655,144.36,144.29,82.09481291]